bitfinex-derivatives/quotes_ETHF0:USTF0_20250115
["timestamp","ask_amount","ask_price","bid_price","bid_amount"]
[1736911420922,3.91604312,3216.2,3216.0,0.31108]
[1736911422116,3.60497312,3216.2,3215.9,41.2729]
[1736911422314,0.4982,3216.5,3215.9,41.2729]
[1736911422722,3.88403129,3216.4,3215.9,41.2729]
[1736911423015,0.31107,3216.2,3216.0,0.31108]
[1736911423215,4.03578129,3216.4,3215.9,41.2729]
[1736911423418,4.34682129,3216.4,3216.2,0.31106]
[1736911423620,3.57298129,3216.4,3215.9,41.2729]
[1736911423819,3.57298129,3216.4,3216.3,0.31105]
[1736911424118,3.57298129,3216.4,3215.9,41.2729]
[1736911424326,0.31107,3216.2,3215.9,41.58398]
[1736911424821,3.3507329,3216.1,3215.9,41.58398]
[1736911425614,3.3507329,3216.1,3216.0,0.31108]
[1736911439040,3.3507329,3216.1,3215.9,41.11109]
[1736911439041,0.31108,3216.0,3215.9,41.11109]
[1736911439231,1.27128,3216.0,3215.9,41.11109]
[1736911439537,1.27128,3216.0,3215.9,40.8]
[1736911439929,0.9602,3216.0,3215.9,40.8]
[1736911440132,0.31105,3216.4,3216.3,0.31105]
[1736911440325,0.4933,3216.5,3215.9,40.8]
[1736911440529,4.89921779,3216.5,3216.4,0.31104]
[1736911441138,4.89921779,3216.5,3215.9,40.8]
[1736911441139,5.30688047,3216.5,3216.3,0.31104]
[1736911441337,4.89921779,3216.5,3216.3,0.31104]
[1736911441739,4.09667779,3216.5,3216.4,0.31104]
[1736911442234,4.09667779,3216.5,3215.9,40.8]
[1736911442443,4.40770779,3216.5,3216.3,0.31105]
[1736911442836,4.09667779,3216.5,3216.3,0.31105]
[1736911443932,4.09667779,3216.5,3215.9,40.8]
[1736911444131,4.09667779,3216.5,3216.4,0.31104]
[1736911449137,4.40771779,3216.5,3216.3,0.31104]
[1736911449342,0.4933,3216.5,3216.4,0.31104]
[1736911451137,0.4933,3216.5,3215.9,44.0078]
[1736911451343,2.76071006,3216.0,3215.8,0.3111]
[1736911451552,0.31111,3215.8,3215.6,0.31111]
[1736911451742,0.31111,3215.8,3215.6,0.31112]
[1736911451941,0.4804,3215.7,3215.6,0.31112]
[1736911452342,0.4804,3215.7,3215.5,44.0078]
[1736911452343,0.31112,3215.6,3215.5,40.8]
[1736911452538,9.58368905,3215.7,3215.1,3.2078]
[1736911452743,2.76077006,3215.4,3215.2,0.31115]
[1736911452940,0.31115,3215.3,3215.1,3.2078]
[1736911453253,3.857422,3215.3,3215.2,40.8]
[1736911453554,3.546272,3215.3,3215.2,40.8]
[1736911454348,4.043972,3215.3,3215.2,40.8]
[1736911454654,4.355122,3215.3,3215.2,40.8]
[1736911455043,4.043972,3215.3,3215.2,40.8]
[1736911456450,4.043972,3215.3,3215.2,41.11116]
[1736911457053,6.13783006,3215.7,3215.2,40.8]
[1736911457351,3.90016417,3215.6,3215.3,0.78535]
[1736911457550,3.85037346,3215.6,3215.3,0.31115]
[1736911457750,0.4753,3215.5,3215.3,0.31115]
[1736911458144,3.49385106,3215.4,3215.3,0.31115]
[1736911459752,3.2078,3215.7,3215.6,0.31112]
[1736911461043,3.2078,3216.1,3216.0,0.31108]
[1736911461652,3.2078,3216.1,3216.0,41.11108]
[1736911462158,3.2078,3216.1,3216.0,41.59938]
[1736911462656,3.2078,3216.6,3216.4,0.31103]
[1736911463051,3.35802026,3216.5,3216.4,0.31103]
[1736911464556,3.2078,3216.6,3216.5,0.31103]
[1736911466054,0.31094,3217.5,3217.2,0.31096]
[1736911466255,0.4676,3217.6,3217.1,0.31097]
[1736911466449,4.08356219,3217.4,3217.1,0.31097]
[1736911466763,0.78685,3217.4,3217.2,40.8]
[1736911466962,3.36491852,3217.3,3217.2,40.8]
[1736911467660,3.36491852,3217.3,3217.2,41.11096]
[1736911470557,3.36491852,3217.3,3217.2,0.31096]
[1736911471063,3.36491852,3217.3,3217.1,0.31097]
[1736911471266,3.36491852,3217.3,3216.9,40.8]
[1736911471458,3.36491852,3217.3,3217.0,0.31098]
[1736911471660,3.67586852,3217.3,3217.0,0.31098]
[1736911471861,3.81961852,3217.3,3217.1,0.31097]
[1736911472551,3.81961852,3217.3,3216.9,40.8]
[1736911472962,3.81961852,3217.3,3217.1,0.31097]
[1736911473864,4.13057852,3217.3,3217.0,0.31098]
[1736911474160,4.13057852,3217.3,3216.9,40.8]
[1736911474366,0.31097,3217.2,3217.0,0.31098]
[1736911474663,4.13057852,3217.3,3217.0,0.31098]
[1736911474966,4.13057852,3217.3,3217.1,0.31097]
[1736911476262,3.81961852,3217.3,3217.1,0.31097]
[1736911476562,3.36491852,3217.3,3217.1,0.31097]
[1736911476763,3.36491852,3217.3,3217.2,0.4545]
[1736911478765,3.36491852,3217.3,3217.2,0.76546]
[1736911479157,0.4759,3217.4,3217.3,0.31095]
[1736911479359,3.2078,3217.7,3217.6,0.31093]
[1736911485561,3.668,3217.7,3217.6,0.31093]
[1736911485963,3.2078,3217.7,3217.6,0.31093]
[1736911486265,0.31088,3218.1,3217.9,0.31089]
[1736911486473,0.31088,3218.1,3218.0,0.31089]
[1736911486772,3.364962,3218.1,3218.0,41.11089]
[1736911487064,0.31087,3218.2,3218.0,41.11089]
[1736911487269,3.668,3218.3,3217.4,0.77737]
[1736911487465,3.2674416,3218.1,3217.9,0.31089]
[1736911487664,3.5783116,3218.2,3217.9,0.31089]
[1736911487870,0.31087,3218.2,3217.9,0.31089]
[1736911488172,3.47406765,3218.1,3217.9,0.31089]
[1736911488665,3.47406765,3218.1,3217.5,40.8]
[1736911488972,3.47406765,3218.1,3218.0,0.31089]
[1736911489465,3.78494765,3218.1,3217.8,0.3109]
[1736911489874,0.31088,3218.1,3217.9,0.31089]
[1736911490071,3.41012743,3218.0,3217.5,40.8]
[1736911490265,3.41012743,3218.0,3217.9,0.3109]
[1736911494368,0.31091,3217.8,3217.6,0.31092]
[1736911494778,0.4806,3217.7,3217.6,0.31092]
[1736911495674,0.4806,3217.7,3217.5,40.8]
[1736911495877,0.77403,3217.6,3217.5,40.8]
[1736911496275,0.31094,3217.5,3217.3,0.31095]
[1736911496778,0.31094,3217.5,3217.4,40.8]
[1736911497179,0.77403,3217.6,3217.4,41.11094]
[1736911497377,0.4631,3217.6,3217.4,41.11094]
[1736911497578,0.31094,3217.5,3217.4,41.11094]
[1736911498380,0.31094,3217.5,3217.4,40.8]
[1736911498777,3.82994796,3217.5,3217.4,40.8]
[1736911499876,3.87970432,3217.5,3217.4,40.8]
[1736911500078,3.82994796,3217.5,3217.4,40.8]
[1736911500282,0.31095,3217.4,3217.2,0.31096]
[1736911500683,0.31095,3217.4,3216.9,0.491]
[1736911500684,0.4806,3217.7,3217.3,43.24963006]
[1736911500979,0.4806,3217.7,3217.6,0.31093]
[1736911501179,0.71729166,3218.1,3217.9,0.3109]
[1736911501380,1.19069166,3218.1,3217.9,0.3109]
[1736911501575,3.30023159,3218.0,3217.9,0.3109]
[1736911501974,3.30023159,3218.0,3217.8,0.3109]
[1736911502379,3.61112159,3218.0,3217.8,0.3109]
[1736911502575,3.30023159,3218.0,3217.8,0.3109]
[1736911504479,3.30023159,3218.0,3217.5,0.4903]
[1736911504685,0.31094,3217.5,3217.4,0.4614]
[1736911505171,0.31093,3217.6,3217.4,0.77234]
[1736911505583,0.4726,3217.5,3217.4,0.77234]
[1736911506278,0.4726,3217.5,3217.4,0.31094]
[1736911506583,4.32432941,3217.5,3217.3,41.11095]
[1736911506784,4.32432941,3217.5,3217.3,40.8]
[1736911507077,4.01338941,3217.5,3217.3,40.8]
[1736911507589,4.32432941,3217.5,3217.3,41.11095]
[1736911510085,4.01338941,3217.5,3217.3,40.8]
[1736911510288,0.31094,3217.4,3217.3,40.8]
[1736911510487,3.51874,3217.4,3217.3,40.8]
[1736911510779,7.01564506,3217.4,3217.3,40.8]
[1736911511185,3.49690506,3217.4,3217.3,41.11095]
[1736911513384,3.80784506,3217.4,3217.3,40.8]
[1736911514888,3.49690506,3217.4,3217.3,41.11095]
[1736911515091,3.80784506,3217.4,3217.3,40.8]
[1736911515289,0.31098,3217.0,3216.9,0.4836]
[1736911515489,0.31098,3217.0,3216.8,3.5188]
[1736911515689,0.4675,3216.9,3216.8,3.5188]
[1736911515888,0.4675,3216.9,3216.8,44.3188]
[1736911516590,0.77849,3216.9,3216.8,44.0078]
[1736911516795,5.31108021,3216.9,3216.8,44.0078]
[1736911516991,4.04289021,3216.9,3216.8,44.3188]
[1736911519097,4.04289021,3216.9,3216.8,41.111]
[1736911520799,0.31098,3217.1,3216.9,0.31099]
[1736911521099,3.60942447,3217.1,3216.9,1.27769]
[1736911521302,3.29844447,3217.1,3216.9,0.9667]
[1736911521598,0.31098,3217.0,3216.9,0.9667]
[1736911522996,3.29844447,3217.1,3216.9,0.9667]
[1736911523394,0.31098,3217.0,3216.9,0.96425768]
[1736911523796,3.60942447,3217.1,3216.9,1.27524768]
[1736911523995,0.31098,3217.0,3216.9,0.96425768]
[1736911524412,3.29844447,3217.1,3216.9,0.96425768]
[1736911524701,0.31098,3217.0,3216.9,0.96425768]
[1736911527699,3.29844447,3217.1,3216.9,0.96425768]
[1736911527895,3.2078,3217.2,3216.9,0.96425768]
[1736911528100,3.2078,3217.2,3217.1,0.31097]
[1736911528698,0.4857,3217.6,3217.1,3.2078]
[1736911528900,0.4857,3217.6,3217.5,0.31094]
[1736911529305,0.4857,3217.6,3217.4,0.31094]
[1736911529508,0.4857,3217.6,3217.5,0.4553]
[1736911530007,0.4857,3217.6,3217.5,0.76624]
[1736911531009,0.4857,3217.6,3217.5,0.4553]
[1736911531215,0.79663,3217.6,3217.4,0.31094]
[1736911531604,0.4857,3217.6,3217.3,2.44963006]
[1736911531806,0.4857,3217.6,3217.5,0.31094]
[1736911532709,0.4857,3217.6,3217.4,0.31094]
[1736911533105,0.79663,3217.6,3217.4,0.31094]
[1736911535007,0.4857,3217.6,3217.1,3.5832]
[1736911535312,0.31098,3217.1,3216.9,0.4899]
[1736911535503,0.31099,3216.9,3216.8,40.8]
[1736911536298,0.4746,3217.0,3216.7,3.2078]
[1736911536505,3.2078,3217.8,3216.9,2.44963006]
[1736911536717,3.2078,3217.8,3217.7,0.31092]
[1736911537412,0.9582,3218.2,3217.8,0.31091]
[1736911537600,0.9582,3218.2,3217.6,2.44963006]
[1736911537601,0.40628802,3218.5,3217.6,2.44963006]
[1736911537804,0.04974099,3218.4,3217.9,2.44963006]
[1736911538116,3.29540151,3218.3,3218.1,0.31087]
[1736911538912,3.29540151,3218.3,3217.9,2.44963006]
[1736911539213,3.29540151,3218.3,3217.8,3.2078]
[1736911539214,3.2078,3218.2,3217.7,1.262]
[1736911539409,3.2078,3218.2,3217.4,3.2078]
[1736911539410,0.31093,3217.6,3217.4,3.2078]
[1736911539604,0.31094,3217.5,3217.4,3.2078]
[1736911539805,3.94971295,3217.5,3217.0,40.8]
[1736911540115,3.2078,3217.3,3216.5,3.51883]
[1736911540305,0.04975853,3217.2,3216.4,0.4864]
[1736911540616,0.31101,3216.8,3216.6,40.8]
[1736911541109,0.80201,3216.7,3216.6,40.8]
[1736911541416,4.35838014,3216.7,3216.6,40.8]
[1736911541625,1.27621,3216.7,3216.6,40.8]
[1736911541818,4.66939014,3216.7,3216.6,40.8]
[1736911542314,3.88418014,3216.7,3216.6,40.8]
[1736911542513,0.491,3216.7,3216.6,40.8]
[1736911542815,0.491,3216.7,3216.6,41.11102]
[1736911543309,0.4742,3217.1,3216.8,0.311]
[1736911543511,0.4742,3217.1,3216.9,0.4897]
[1736911543716,0.78518,3217.1,3216.9,0.4897]
[1736911544511,0.4742,3217.1,3216.9,0.4897]
[1736911544713,0.78518,3217.1,3216.9,0.4897]
[1736911544914,0.4742,3217.1,3216.9,0.4897]
[1736911545110,0.4896,3217.2,3217.0,3.2078]
[1736911545515,3.2078,3217.7,3217.0,3.2078]
[1736911545516,3.2078,3217.7,3217.1,0.31097]
[1736911545715,0.31094,3217.5,3217.1,0.31097]
[1736911545916,4.453777,3217.6,3217.2,40.8]
[1736911546118,0.4896,3217.6,3217.2,40.8]
[1736911546309,0.31094,3217.5,3217.2,41.11096]
[1736911547417,0.31095,3217.4,3217.2,40.8]
[1736911548856,0.4896,3217.6,3217.5,0.31094]
[1736911549161,0.78169,3218.0,3217.5,2.44963006]
[1736911549449,0.5014,3218.0,3217.8,0.3109]
[1736911549647,0.5014,3218.0,3217.9,0.3109]
[1736911549836,0.5014,3218.0,3217.7,3.5829]
[1736911550042,0.5014,3218.0,3217.9,0.3109]
[1736911550244,0.5014,3218.0,3217.9,41.1109]
[1736911552254,0.5014,3218.0,3217.9,40.8]
[1736911552759,0.81229,3218.0,3217.9,40.8]
[1736911552949,0.5014,3218.0,3217.9,40.8]
[1736911553456,0.31086,3218.3,3217.9,40.8]
[1736911553751,0.31087,3218.2,3217.9,41.11089]
[1736911554150,0.4693,3218.3,3218.1,0.31088]
[1736911554446,0.4693,3218.3,3218.2,0.4669]
[1736911554647,0.4693,3218.3,3218.2,0.77777]
[1736911555733,0.4693,3218.3,3218.2,0.4669]
[1736911556325,0.31088,3218.1,3217.9,40.8]
[1736911560224,0.4693,3218.3,3217.9,40.8]
[1736911560225,3.59869617,3218.0,3217.9,40.8]
[1736911560724,0.31089,3218.0,3217.9,40.8]
[1736911562426,0.4693,3218.3,3217.9,40.8]
[1736911562926,0.31089,3218.0,3217.9,40.8]
[1736911563619,3.4351169,3218.2,3217.7,3.6844]
[1736911563825,0.3109,3217.9,3217.7,3.6844]
[1736911564022,3.4351169,3218.2,3217.7,3.6844]
[1736911564225,0.4801,3217.8,3217.7,3.99531]
[1736911564927,0.4801,3217.8,3217.7,3.6844]
[1736911566327,0.4801,3217.8,3217.7,3.99532]
[1736911566727,0.79101,3217.8,3217.7,3.2078]
[1736911567427,0.79101,3217.8,3217.5,41.267]
[1736911567428,0.31093,3217.6,3217.5,40.8]
[1736911567830,3.79724211,3217.6,3217.5,40.8]
[1736911571131,4.2030488,3217.6,3217.5,40.8]
[1736911571520,4.25280368,3217.6,3217.5,40.8]
[1736911573635,4.25280467,3217.6,3217.5,40.8]
[1736911574231,3.94187467,3217.6,3217.0,0.4844]
[1736911574431,0.31097,3217.1,3217.0,0.4844]
[1736911574630,0.31097,3217.2,3217.0,41.2844]
[1736911574831,3.51808359,3217.1,3217.0,41.2844]
[1736911575133,4.00778359,3217.2,3217.0,41.2844]
[1736911575335,0.31097,3217.1,3217.0,41.2844]
[1736911575536,3.8960688,3217.1,3217.0,41.2844]
[1736911576932,3.8960688,3217.1,3217.0,40.8]
[1736911577134,4.8507688,3217.1,3217.0,40.8]
[1736911577338,4.90053283,3217.1,3217.0,40.8]
[1736911577539,4.58956283,3217.1,3216.3,3.2078]
[1736911577731,3.2078,3216.5,3215.9,3.7031]
[1736911577933,0.31108,3216.0,3215.9,0.4953]
[1736911578130,0.31108,3216.0,3215.9,41.2953]
[1736911578430,0.31108,3216.0,3215.9,40.8]
[1736911578831,3.70265927,3216.0,3215.9,40.8]
[1736911579629,3.75244277,3216.0,3215.9,40.8]
[1736911580931,3.44136277,3216.0,3215.6,0.4953]
[1736911581138,3.51891,3215.7,3215.6,0.4953]
[1736911581532,3.51891,3215.7,3215.6,41.2953]
[1736911581928,7.02164354,3215.7,3215.6,40.8]
[1736911582241,9.4712736,3215.7,3215.6,40.8]
[1736911583134,0.31113,3215.5,3215.1,0.79787]
[1736911583528,3.71529611,3215.4,3215.2,40.8]
[1736911583732,0.31115,3215.3,3215.2,40.8]
[1736911593141,1.26652,3215.6,3215.3,0.31115]
[1736911593340,3.2078,3215.7,3215.1,0.4867]
[1736911593549,0.31112,3215.6,3215.3,0.3761]
[1736911593845,0.31112,3215.6,3215.4,41.2949]
[1736911594837,3.2078,3215.7,3215.4,41.2949]
[1736911595044,3.2078,3215.7,3215.4,41.60603]
[1736911595235,3.51891,3215.7,3215.4,41.60603]
[1736911596042,3.2078,3215.7,3215.4,41.2949]
[1736911596338,0.31107,3216.1,3215.8,0.3111]
[1736911596543,0.31107,3216.1,3215.9,0.4845]
[1736911597643,0.31108,3216.0,3215.9,0.4845]
[1736911598439,3.2078,3216.2,3216.0,0.31108]
[1736911598641,2.95073006,3216.6,3215.9,2.93413006]
[1736911598642,0.31103,3216.6,3215.9,2.93413006]
[1736911598845,0.31103,3216.6,3216.3,0.31105]
[1736911599544,0.31101,3216.7,3216.4,0.31104]
[1736911599742,0.31101,3216.7,3216.5,0.4654]
[1736911599943,3.69791036,3216.7,3216.6,40.8]
[1736911603438,3.69791036,3216.7,3216.5,0.4654]
[1736911603844,3.69791036,3216.7,3216.5,41.2654]
[1736911605447,0.31101,3216.7,3216.5,41.2654]
[1736911607350,3.2078,3216.8,3216.5,41.2654]
[1736911607545,3.6703,3217.4,3216.6,3.6728]
[1736911607752,0.4971,3217.5,3217.1,5.65743006]
[1736911607946,3.51871,3217.8,3217.3,0.31095]
[1736911608146,3.41303417,3217.7,3217.2,1.2943]
[1736911608454,3.72395417,3217.7,3217.3,0.31095]
[1736911608953,0.31093,3217.6,3217.2,1.60526]
[1736911609155,3.41303417,3217.7,3217.2,0.9182]
[1736911609356,3.47892953,3217.5,3217.1,3.2078]
[1736911609542,0.31096,3217.2,3217.1,3.2078]
[1736911610742,0.31098,3217.0,3216.9,0.4532]
[1736911614356,0.31101,3216.8,3216.6,0.465]
[1736911614658,0.473,3217.1,3216.5,40.8]
[1736911614850,0.31102,3216.7,3216.5,40.8]
[1736911615148,0.31102,3216.6,3216.5,40.8]
[1736911615355,0.76952,3216.6,3216.5,40.8]
[1736911615743,1.26562,3216.6,3216.5,40.8]
[1736911618952,4.56866148,3216.6,3216.5,40.8]
[1736911619256,0.31105,3216.4,3216.0,0.78337]
[1736911619448,0.31104,3216.5,3216.1,0.31106]
[1736911619650,3.35211529,3216.3,3216.2,40.8]
[1736911620051,3.66315529,3216.4,3216.2,40.8]
[1736911620244,0.31104,3216.4,3216.2,40.8]
[1736911620448,3.5550102,3216.3,3216.2,40.8]
[1736911620753,7.0738602,3216.3,3216.2,40.8]
[1736911621356,7.59933728,3216.3,3216.2,40.8]
[1736911622752,7.2385102,3216.3,3215.6,0.78131]
[1736911622952,0.31112,3215.7,3215.4,3.2078]
[1736911623159,0.4961,3215.6,3215.4,3.2078]
[1736911623354,0.4961,3215.6,3215.5,40.8]
[1736911624656,0.80722,3215.6,3215.5,40.8]
[1736911630953,0.4961,3215.6,3215.5,40.8]
[1736911631156,3.2078,3215.9,3215.5,40.8]
[1736911631362,0.5004,3216.4,3215.7,2.44963006]
[1736911631674,3.2078,3216.6,3216.3,0.31105]
[1736911631864,3.2078,3216.6,3216.4,41.263]
[1736911632161,3.50288752,3216.5,3216.4,41.263]
[1736911632365,3.81391752,3216.5,3216.4,41.263]
[1736911632864,3.5526621,3216.5,3215.4,2.44963006]
[1736911633068,0.31109,3216.0,3215.6,0.76451]
[1736911633473,2.44963006,3216.3,3215.7,40.8]
[1736911633790,0.31109,3215.9,3215.7,40.8]
[1736911634763,0.31109,3216.0,3215.7,41.1111]
[1736911635164,3.29040321,3216.0,3215.7,40.8]
[1736911635358,0.31109,3215.9,3215.7,40.8]
[1736911635577,0.77249,3215.9,3215.7,40.8]
[1736911635885,0.4614,3215.9,3215.7,40.8]
[1736911636279,0.3111,3215.8,3215.7,40.8]
[1736911636475,0.3111,3215.8,3214.7,3.519]
[1736911636476,6.55025874,3215.8,3214.7,3.519]
[1736911636677,3.2078,3215.4,3214.8,1.3413]
[1736911636876,0.31117,3215.1,3214.8,1.3413]
[1736911637098,0.31118,3215.0,3214.9,40.8]
[1736911638095,0.31117,3215.2,3214.9,40.8]
[1736911638390,0.4614,3215.3,3214.9,40.8]
[1736911638591,3.56212995,3215.1,3215.0,0.68708]
[1736911638790,3.2078,3215.4,3215.1,0.31116]
[1736911639089,0.31117,3215.1,3214.9,40.8]
[1736911639291,0.31118,3215.0,3214.9,40.8]
[1736911639587,0.4785,3215.3,3214.9,40.8]
[1736911639588,0.31117,3215.2,3214.9,40.8]
[1736911639789,0.31117,3215.1,3214.9,40.8]
[1736911640791,0.31118,3215.0,3214.9,40.8]
[1736911641088,0.4785,3215.3,3214.9,40.8]
[1736911641289,0.31117,3215.1,3214.9,40.8]
[1736911642690,0.31118,3215.0,3214.9,40.8]
[1736911643083,3.42030691,3215.2,3214.9,40.8]
[1736911643283,0.31117,3215.1,3214.9,40.8]
[1736911643682,0.31118,3215.0,3214.9,40.8]
[1736911645271,3.42030691,3215.2,3214.9,40.8]
[1736911645672,3.2078,3215.4,3215.2,0.31115]
[1736911646069,3.51894,3215.4,3215.1,0.31116]
[1736911647363,3.51894,3215.4,3214.9,40.8]
[1736911647364,0.31115,3215.3,3214.9,40.8]
[1736911647565,3.2078,3215.4,3215.0,0.31117]
[1736911647566,0.31116,3215.2,3215.0,0.31117]
[1736911647768,3.2078,3215.4,3214.9,40.8]
[1736911647965,0.31115,3215.3,3215.1,0.31117]
[1736911648670,0.31116,3215.2,3215.0,0.31117]
[1736911648870,3.2078,3215.4,3214.9,40.8]
[1736911649073,0.31115,3215.3,3214.9,40.8]
[1736911649275,0.31115,3215.3,3215.1,0.31116]
[1736911649675,0.31115,3215.3,3214.9,40.8]
[1736911649876,0.31115,3215.3,3215.2,0.31116]
[1736911650573,3.51894,3215.4,3215.2,0.31116]
[1736911652383,0.31112,3215.6,3215.4,0.31114]
[1736911652681,0.31112,3215.6,3215.5,0.4928]
[1736911653380,3.2078,3215.9,3215.5,0.4928]
[1736911653566,0.31108,3216.0,3215.8,0.31109]
[1736911654072,3.7005,3216.3,3215.6,0.3759]
[1736911654073,3.7005,3216.3,3215.6,2.82553006]
[1736911654378,0.31108,3216.0,3215.7,0.3111]
[1736911654777,0.31108,3216.0,3215.8,41.1111]
[1736911654979,0.31108,3216.1,3215.8,41.1111]
[1736911655878,0.31108,3216.1,3215.8,40.8]
[1736911656079,3.2078,3216.3,3216.2,0.31106]
[1736911658280,3.2078,3216.3,3216.2,0.80666]
[1736911667475,3.6889,3216.6,3216.2,0.4956]
[1736911667676,0.31103,3216.5,3216.3,0.31105]
[1736911668189,3.6889,3216.6,3216.2,0.4956]
[1736911668383,3.99992,3216.6,3216.2,0.4956]
[1736911668688,3.6889,3216.6,3216.2,0.4956]
[1736911669191,0.4811,3216.6,3216.5,2.76066006]
[1736911669390,0.31096,3217.3,3217.0,0.31098]
[1736911669589,0.491,3217.3,3216.6,0.8743]
[1736911669792,0.31097,3217.2,3216.9,0.31099]
[1736911669991,0.31097,3217.2,3216.8,0.4814]
[1736911670491,0.31097,3217.2,3216.9,0.31098]
[1736911670782,4.06899047,3217.3,3216.7,40.8]
[1736911670980,3.2078,3217.0,3216.7,40.8]
[1736911671188,3.2078,3217.0,3216.4,1.261]
[1736911671189,0.31103,3216.6,3216.4,1.261]
[1736911671390,0.4632,3216.5,3216.4,1.261]
[1736911671690,0.4632,3216.5,3216.4,42.37204]
[1736911671890,0.4632,3216.5,3216.4,41.11104]
[1736911672078,0.4632,3216.5,3216.4,40.8]
[1736911672580,0.77423,3216.5,3216.4,40.8]
[1736911673790,4.00941356,3216.5,3216.4,40.8]
[1736911673990,7.21721356,3216.5,3216.4,40.8]
[1736911674587,9.71661867,3216.5,3216.4,40.8]
[1736911674892,0.31108,3216.0,3215.9,3.2078]
[1736911675191,0.31108,3216.0,3215.9,44.0078]
[1736911675389,0.9377,3216.3,3215.9,44.0078]
[1736911675691,0.4586,3216.3,3216.1,0.31107]
[1736911675987,3.24317511,3216.2,3216.1,0.31107]
[1736911676290,0.4632,3216.5,3216.1,0.77697]
[1736911676492,0.4632,3216.5,3216.0,3.71063006]
[1736911676493,0.31107,3216.1,3216.0,1.261]
[1736911676685,0.31108,3216.0,3215.9,44.0078]
[1736911676882,0.79018,3216.0,3215.9,44.0078]
[1736911677081,4.30453382,3216.0,3215.9,40.8]
[1736911677282,3.99345382,3216.0,3215.9,40.8]
[1736911677489,3.98203,3216.5,3216.1,0.31106]
[1736911677688,0.4632,3216.5,3216.2,0.31106]
[1736911677889,3.43904251,3216.4,3216.2,0.31106]
[1736911678092,3.43904251,3216.4,3216.0,3.7083]
[1736911678093,3.43904251,3216.4,3216.1,0.31106]
[1736911678790,3.75008251,3216.4,3216.1,0.31106]
[1736911680193,3.75008251,3216.4,3216.0,4.01937]
[1736911680390,0.31106,3216.3,3216.0,3.7083]
[1736911680886,0.77226,3216.3,3216.0,3.7083]
[1736911681091,0.31107,3216.1,3216.0,3.2078]
[1736911681596,0.31107,3216.1,3215.9,40.8]
[1736911681597,0.31108,3216.1,3215.9,40.8]
[1736911682292,3.2078,3216.0,3215.9,40.8]
[1736911682489,6.7654358,3216.0,3215.1,3.2078]
[1736911682693,3.2078,3215.6,3215.2,0.4915]
[1736911682989,3.51892,3215.6,3215.3,40.8]
[1736911683393,3.2078,3215.6,3215.3,40.8]
[1736911683698,0.31114,3215.4,3215.3,40.8]
[1736911683893,3.77591621,3215.5,3215.3,40.8]
[1736911684200,3.2078,3215.6,3215.3,40.8]
[1736911684397,3.2078,3215.6,3215.4,0.80943]
[1736911686194,3.51892,3215.6,3215.4,0.4983]
[1736911686697,0.31113,3215.5,3215.4,0.4983]
[1736911687495,0.31114,3215.5,3215.3,40.8]
[1736911687998,0.31114,3215.4,3215.3,40.8]
[1736911688801,0.77194,3215.4,3215.3,40.8]
[1736911690801,3.51892,3215.6,3215.3,40.8]
[1736911691001,3.2078,3215.6,3215.4,0.31113]
[1736911691200,3.2078,3215.6,3215.5,0.4812]
[1736911692598,3.2078,3215.6,3215.3,40.8]
[1736911692796,6.74161379,3215.6,3215.3,40.8]
[1736911692991,3.2078,3215.6,3215.3,40.8]
[1736911693199,3.2078,3215.6,3215.3,41.11114]
[1736911693401,3.51892,3215.6,3215.3,41.11114]
[1736911694604,3.2078,3215.6,3215.4,0.31113]
[1736911694803,3.2078,3215.6,3215.3,40.8]
[1736911694804,3.2078,3215.6,3215.5,0.31113]
[1736911696805,0.5013,3215.9,3215.8,0.3111]
[1736911697706,0.5013,3215.9,3215.7,3.2078]
[1736911698003,0.5013,3215.9,3215.7,3.5189]
[1736911698405,0.5013,3215.9,3215.7,0.3111]
[1736911699400,0.31111,3215.8,3215.6,0.4539]
[1736911699906,0.5013,3215.9,3215.6,0.4539]
[1736911700202,0.5013,3215.9,3215.7,0.31111]
[1736911700405,0.5013,3215.9,3215.8,0.3111]
[1736911702804,0.5013,3215.9,3215.7,3.2078]
[1736911703004,0.5013,3215.9,3215.7,3.5189]
[1736911703795,0.5013,3215.9,3215.8,0.3111]
[1736911704511,0.9565,3216.3,3215.9,0.31109]
[1736911704839,0.4722,3216.2,3216.1,0.31107]
[1736911705015,0.4722,3216.2,3216.1,2.76070006]
[1736911705220,0.4722,3216.2,3216.1,43.56070006]
[1736911706009,0.4722,3216.2,3216.1,40.8]
[1736911706213,0.31109,3216.0,3215.7,3.5189]
[1736911706711,0.31109,3215.9,3215.8,40.8]
[1736911708204,3.63318419,3215.9,3215.8,40.8]
[1736911708403,0.31114,3215.4,3215.3,3.2078]
[1736911708908,0.31114,3215.4,3215.3,44.0078]
[1736911711502,0.31113,3215.6,3215.3,44.31894]
[1736911711699,0.31109,3215.9,3215.3,44.31895]
[1736911711903,3.43097628,3215.5,3215.4,0.31114]
[1736911712111,0.3111,3215.9,3215.4,0.461]
[1736911712311,0.3111,3215.9,3215.6,0.31112]
[1736911713910,4.48238,3216.1,3215.8,0.31109]
[1736911714411,4.48238,3216.1,3215.9,40.8]
[1736911715708,0.31108,3216.0,3215.9,40.8]
[1736911718434,4.48238,3216.1,3215.9,40.8]
[1736911719037,0.31108,3216.0,3215.9,40.8]
[1736911719350,3.2078,3216.5,3215.9,40.8]
[1736911719536,3.6765,3216.5,3215.9,40.8]
[1736911719737,0.31104,3216.4,3216.1,0.31107]